bitfinex/quotes_BTCUSD_20251219
["timestamp","ask_amount","ask_price","bid_price","bid_amount"]
[1766125018815,0.00576,87108.0,87101.0,0.01148092]
[1766125018960,0.004664,87108.0,87104.0,0.01148052]
[1766125020450,0.004664,87108.0,87105.0,0.01148039]
[1766125020653,0.004664,87108.0,87104.0,0.01148052]
[1766125021074,0.004664,87108.0,87102.0,0.01148079]
[1766125021282,0.277564,87108.0,87100.0,0.01148105]
[1766125021487,0.00576,87107.0,87101.0,0.01148092]
[1766125021893,0.00576,87107.0,87103.0,0.01148066]
[1766125022333,0.00576,87107.0,87102.0,0.22961585]
[1766125022334,0.2729,87119.0,87110.0,0.01147973]
[1766125022538,0.00576,87118.0,87110.0,0.00010944]
[1766125023942,0.00576,87118.0,87110.0,4.4e-07]
[1766125024164,0.28631,87113.0,87110.0,4.4e-07]
[1766125024679,0.29207,87113.0,87110.0,4.4e-07]
[1766125027012,0.005651,87113.0,87110.0,4.4e-07]
[1766125035228,0.005651,87113.0,87104.0,0.22961005]
[1766125035229,0.06678121,87112.0,87095.0,0.01188171]
[1766125035440,0.62016,87111.0,87101.0,0.01148092]
[1766125035861,0.62016,87111.0,87103.0,0.01148066]
[1766125036081,0.28382,87110.0,87102.0,0.01148079]
[1766125036391,0.28382,87110.0,87103.0,0.01148066]
[1766125036753,0.28382,87110.0,87102.0,0.01148079]
[1766125037166,0.00576,87111.0,87103.0,0.01148066]
[1766125037392,0.33634,87119.0,87102.0,0.01148079]
[1766125037552,0.28958,87118.0,87102.0,0.01148079]
[1766125037927,0.28958,87118.0,87103.0,0.01148066]
[1766125038405,0.28382,87117.0,87103.0,0.01148066]
[1766125039023,0.28382,87117.0,87104.0,0.01148052]
[1766125039210,0.28382,87117.0,87103.0,0.01148066]
[1766125039423,0.28382,87117.0,87104.0,0.01148052]
[1766125039791,0.28382,87117.0,87105.0,0.01148039]
[1766125039995,0.28382,87117.0,87101.0,0.01148092]
[1766125039996,0.28382,87123.0,87116.0,0.01147894]
[1766125040196,0.00576,87126.0,87118.0,0.01147868]
[1766125040360,0.00576,87126.0,87119.0,0.01147855]
[1766125041036,0.00576,87126.0,87118.0,0.01147868]
[1766125041255,0.00576,87126.0,87119.0,0.01147855]
[1766125041745,0.00576,87126.0,87112.0,0.00576]
[1766125041965,0.28958,87126.0,87112.0,0.0001096]
[1766125042156,0.33634,87121.0,87112.0,0.0001096]
[1766125042360,0.33634,87116.0,87104.0,0.00576]
[1766125042557,0.33634,87112.0,87099.0,0.01148118]
[1766125042776,0.33634,87112.0,87093.0,0.01188197]
[1766125042777,0.33634,87110.0,87093.0,0.01188197]
[1766125042975,0.00576011,87109.0,87096.0,0.00576]
[1766125043126,0.00586956,87112.0,87096.0,0.00576]
[1766125043316,0.33634,87109.0,87096.0,0.00576]
[1766125043742,0.00576011,87108.0,87096.0,0.00576]
[1766125043945,0.28382,87106.0,87096.0,0.00576]
[1766125044118,0.28958,87106.0,87096.0,0.00576]
[1766125044722,0.28382,87104.0,87093.0,0.0004]
[1766125045343,0.28382,87103.0,87093.0,0.0004]
[1766125045546,0.33634,87101.0,87093.0,0.0004]
[1766125045766,0.62016,87100.0,87093.0,0.0004]
[1766125045925,0.62016,87100.0,87094.0,0.00025205]
[1766125047678,0.33634,87100.0,87094.0,0.00025205]
[1766125048715,0.28382,87099.0,87094.0,0.00025205]
[1766125051820,0.28382,87105.0,87094.0,0.00025205]
[1766125051962,0.00576,87106.0,87099.0,0.001099]
[1766125052189,0.62016,87105.0,87099.0,0.001099]
[1766125052390,0.00576,87106.0,87094.0,0.01173389]
[1766125052391,0.28382,87103.0,87094.0,0.00025205]
[1766125052752,0.28382,87103.0,87095.0,0.01188171]
[1766125052953,0.28382,87103.0,87095.0,0.0004]
[1766125053179,0.28382,87103.0,87095.0,0.01188171]
[1766125053306,0.282721,87103.0,87095.0,0.0004]
[1766125053839,0.282721,87103.0,87095.0,0.01188171]
[1766125055627,0.282721,87103.0,87096.0,0.01148158]
[1766125056238,0.282721,87103.0,87095.0,0.01188171]
[1766125056633,0.00576,87106.0,87097.0,0.22962903]
[1766125056860,0.03863,87110.0,87107.0,0.01148013]
[1766125057192,0.00010956,87112.0,87109.0,0.01147987]
[1766125057388,0.00010956,87112.0,87109.0,0.24107466]
[1766125057858,0.00010956,87112.0,87109.0,0.01147987]
[1766125058319,0.00576,87117.0,87110.0,0.22959476]
[1766125058532,0.00576,87117.0,87108.0,0.01148]
[1766125058728,0.00576,87117.0,87109.0,0.01147987]
[1766125059007,0.00576,87117.0,87110.0,0.01147973]
[1766125059774,0.00576,87117.0,87111.0,0.0114796]
[1766125059955,0.00576,87117.0,87108.0,0.01148]
[1766125060154,0.00576,87117.0,87107.0,0.01148013]
[1766125060397,0.00576,87117.0,87102.0,0.01724079]
[1766125060615,0.001099,87107.0,87104.0,0.01148052]
[1766125060813,0.27715,87117.0,87105.0,0.01148039]
[1766125060994,0.27715,87117.0,87104.0,0.01148052]
[1766125061761,0.27715,87117.0,87105.0,0.01148039]
[1766125061960,0.27715,87117.0,87105.0,0.24108814]
[1766125062183,0.27715,87117.0,87107.0,0.01148013]
[1766125062418,0.27715,87117.0,87108.0,0.01148]
[1766125063075,0.27715,87117.0,87107.0,0.01148013]
[1766125063275,0.27715,87117.0,87108.0,0.01148]
[1766125063476,0.27715,87117.0,87109.0,0.01147987]
[1766125063677,0.27715,87117.0,87108.0,0.01148]
[1766125063885,0.27715,87117.0,87109.0,0.01147987]
[1766125064045,0.00576,87117.0,87108.0,0.01148]
[1766125064652,0.00576,87117.0,87107.0,0.01148013]
[1766125064851,0.00576,87117.0,87108.0,0.01148]
[1766125065650,0.00576,87117.0,87109.0,0.01147987]
[1766125066290,0.00576,87117.0,87108.0,0.01148]
[1766125066872,0.00576,87117.0,87109.0,0.01147987]
[1766125067177,0.00576,87117.0,87110.0,0.01147973]
[1766125067710,0.00576,87117.0,87109.0,0.01147987]
[1766125068460,0.00576,87117.0,87110.0,0.01147973]
[1766125068883,0.00576,87117.0,87109.0,0.01147987]
[1766125069085,0.00576,87117.0,87110.0,0.01147973]
[1766125069324,0.27715,87117.0,87108.0,0.01148]
[1766125069481,0.59512,87117.0,87110.0,0.01147973]
[1766125069688,0.00576,87117.0,87112.0,0.01147947]
[1766125069926,0.27139,87126.0,87117.0,0.01147881]
[1766125070242,0.00576,87125.0,87116.0,0.01147894]
[1766125070604,0.00576,87124.0,87117.0,0.01147881]
[1766125071019,0.00576,87124.0,87115.0,0.01147907]
[1766125071226,0.00576,87124.0,87109.0,0.24107594]
[1766125071451,0.00576,87124.0,87112.0,0.01147947]
[1766125071660,0.00576,87124.0,87111.0,0.0114796]
[1766125071964,0.00576,87124.0,87114.0,0.01147921]
[1766125072352,0.00576,87124.0,87112.0,0.01147947]
[1766125072552,0.00576,87124.0,87109.0,0.01147987]
[1766125072723,0.00576,87124.0,87110.0,0.01147973]
[1766125072724,0.59512,87124.0,87110.0,0.01147973]
[1766125072929,0.59512,87124.0,87109.0,0.01147987]
[1766125073329,0.58936,87123.0,87106.0,0.22960316]
[1766125073553,0.58936,87123.0,87110.0,0.01147973]
[1766125073784,0.58936,87123.0,87111.0,0.0114796]
[1766125073990,0.58936,87123.0,87110.0,0.01147973]
[1766125074335,0.58936,87123.0,87111.0,0.0114796]
[1766125074572,0.58936,87123.0,87110.0,0.01147973]
[1766125074967,0.001099,87110.0,87108.0,0.01148]
[1766125075360,0.27139,87118.0,87109.0,0.01147987]
[1766125075746,0.27139,87118.0,87108.0,0.01724]
[1766125076000,0.27139,87115.0,87109.0,0.01147987]
[1766125076294,0.00576,87118.0,87108.0,0.01724]
[1766125076719,0.00576,87118.0,87109.0,0.01147987]
[1766125076914,0.00576,87118.0,87108.0,0.01724]
[1766125077118,0.001099,87109.0,87101.0,0.00576]
[1766125077369,0.27139,87112.0,87102.0,0.01159035]
[1766125077574,0.27139,87112.0,87102.0,0.00010956]
[1766125078245,0.31797,87109.0,87102.0,0.00010956]
[1766125078436,0.27715011,87108.0,87102.0,0.00010956]
[1766125078646,0.58936,87106.0,87097.0,0.00576]
[1766125079196,0.58936,87106.0,87097.0,0.01724145]
[1766125079555,0.58936,87106.0,87097.0,0.00576]
[1766125079928,0.58936,87106.0,87095.0,0.01188171]
[1766125079929,0.00576,87105.0,87095.0,0.01188171]
[1766125080172,0.00576,87105.0,87097.0,0.01148145]
[1766125080517,0.00576,87105.0,87096.0,0.01148158]
[1766125081412,0.00576,87105.0,87097.0,0.01148145]
[1766125081544,0.00576,87105.0,87095.0,0.0004]
[1766125085031,0.00576,87105.0,87100.0,0.01148105]
[1766125085811,0.00576,87105.0,87101.0,0.01148092]
[1766125086003,0.00576,87105.0,87100.0,0.01148105]
[1766125088644,0.00576,87107.0,87100.0,0.01148105]
[1766125088819,0.00582289,87107.0,87100.0,0.01148105]
[1766125090000,0.00582289,87107.0,87099.0,0.01148118]
[1766125090413,0.00582289,87107.0,87100.0,0.01148105]
[1766125091177,0.00582289,87107.0,87096.0,0.01148158]
[1766125091383,6.289e-05,87107.0,87100.0,0.01148105]
[1766125091579,0.31024,87114.0,87103.0,0.01148066]
[1766125091580,2.89e-06,87109.0,87103.0,0.01148066]
[1766125091780,2.89e-06,87109.0,87099.0,0.01148118]
[1766125091990,2.89e-06,87109.0,87100.0,0.07901105]
[1766125093950,2.89e-06,87109.0,87100.0,0.06753]
[1766125094313,2.89e-06,87109.0,87098.0,0.01148131]
[1766125094533,2.89e-06,87109.0,87099.0,0.01148118]
[1766125095017,2.89e-06,87109.0,87097.0,0.00576]
[1766125095335,2.89e-06,87109.0,87097.0,0.01724145]
[1766125095715,2.89e-06,87109.0,87097.0,0.00576]
[1766125096202,0.61450289,87109.0,87097.0,0.00576]
[1766125097601,0.61450289,87109.0,87097.0,0.01724145]
[1766125097808,0.61450289,87109.0,87097.0,0.00576]
[1766125098016,0.61450289,87109.0,87097.0,0.01724145]
[1766125098578,0.61450289,87109.0,87098.0,0.01148131]
[1766125098827,0.61450289,87109.0,87097.0,0.01724145]
[1766125099155,0.61450289,87109.0,87098.0,0.01148131]
[1766125099270,0.61450289,87109.0,87097.0,0.01724145]
[1766125100531,0.61450289,87109.0,87098.0,0.01148131]
[1766125101221,0.33631289,87109.0,87099.0,0.01148118]
[1766125101402,0.33631289,87109.0,87098.0,0.01148131]
[1766125101607,0.33631289,87109.0,87099.0,0.01148118]
[1766125102073,0.33631289,87109.0,87098.0,0.01148131]
[1766125102406,0.33631289,87109.0,87099.0,0.01148118]
[1766125102613,0.33631289,87109.0,87098.0,0.01148131]
[1766125102816,0.33631289,87109.0,87097.0,0.01724145]
[1766125104008,0.33631289,87109.0,87100.0,0.01148105]
[1766125104217,0.33631289,87109.0,87102.0,0.01148079]
[1766125104459,0.33631289,87109.0,87100.0,0.01148105]
[1766125104660,0.33631,87109.0,87101.0,0.01148092]
[1766125105759,0.00576,87110.0,87102.0,0.01148079]
[1766125106294,0.00576,87110.0,87100.0,0.01148105]
[1766125106430,0.00576,87110.0,87099.0,0.76164796]
[1766125106640,0.00576,87110.0,87100.0,0.01148105]
[1766125107333,0.27819,87113.0,87100.0,0.01148105]
[1766125107593,0.00576,87110.0,87100.0,0.01148105]
[1766125108174,0.27819,87113.0,87100.0,0.01148105]
[1766125108175,0.27819,87113.0,87101.0,0.01148092]
[1766125108381,0.00576,87112.0,87103.0,0.01148066]
[1766125108692,0.27819,87109.0,87095.0,0.01188171]
[1766125108914,0.27819,87109.0,87096.0,0.01148158]
[1766125109119,0.27819,87109.0,87095.0,0.01188171]
[1766125109321,0.27819,87109.0,87095.0,0.0004]
[1766125109465,0.27819,87109.0,87095.0,0.01188171]
[1766125110247,0.27819,87109.0,87095.0,0.0004]
[1766125110575,0.33631,87108.0,87095.0,0.0004]
[1766125110774,0.27819,87103.0,87096.0,0.00576]
[1766125110976,0.6145,87102.0,87096.0,0.00576]
[1766125111172,0.27819,87107.0,87096.0,0.00576]
[1766125112320,0.27819,87106.0,87096.0,0.00576]
[1766125112733,0.28395,87106.0,87096.0,0.00576]
[1766125113264,0.62026,87106.0,87096.0,0.00576]
[1766125114613,0.33631,87104.0,87096.0,0.00576]
[1766125114828,0.6145,87103.0,87096.0,0.00576]
[1766125117840,0.29121,87105.0,87096.0,0.00576]
[1766125118045,0.60203,87105.0,87096.0,0.00576]
[1766125118379,0.00576,87106.0,87094.0,2.05e-06]
[1766125118380,0.603129,87096.0,87094.0,2.05e-06]
[1766125118716,0.603129,87096.0,87093.0,0.0004]
[1766125118717,0.31082,87096.0,87093.0,2.05e-06]
[1766125119037,0.31082,87103.0,87093.0,2.05e-06]
[1766125119197,0.00576,87106.0,87094.0,0.01148184]
[1766125119394,0.00576,87106.0,87097.0,0.01148145]
[1766125119818,0.00576,87106.0,87095.0,0.01148171]
[1766125120188,0.00576,87106.0,87097.0,0.01148145]
[1766125120394,0.00576,87106.0,87096.0,0.01148158]
[1766125121195,0.00576,87106.0,87098.0,0.01148131]
[1766125121405,0.29121,87107.0,87097.0,0.01148145]
[1766125121736,0.00576,87106.0,87098.0,0.01148131]
[1766125121916,0.00576,87106.0,87097.0,0.01148145]
[1766125122908,0.00576,87106.0,87096.0,0.01148158]
[1766125123152,0.00576,87106.0,87097.0,0.01148145]
[1766125124214,0.00576,87106.0,87096.0,0.01148158]
[1766125124617,0.00576,87106.0,87095.0,0.01148171]
[1766125125856,0.00576,87106.0,87080.0,0.0002]
[1766125125857,0.01148184,87094.0,87080.0,0.0002]
[1766125126031,0.01148184,87094.0,87070.0,0.01148501]
[1766125126032,0.05954187,87081.0,87071.0,0.00576]
[1766125126234,0.69141486,87080.0,87066.0,0.00576]
[1766125126434,0.60203,87078.0,87066.0,0.00576]
[1766125126633,0.00576011,87079.0,87066.0,0.00576]
[1766125126634,0.60203,87079.0,87066.0,0.00576]
[1766125126843,0.31082,87074.0,87066.0,0.00576]
[1766125127050,0.29121,87071.0,87066.0,0.00576]
[1766125127476,0.29121,87074.0,87066.0,0.00576]
[1766125127636,0.29121,87072.0,87066.0,0.00576]
[1766125128958,0.60203,87065.0,87056.0,0.01724685]
[1766125129112,0.60203,87065.0,87056.0,0.00576]
[1766125129488,0.60203,87065.0,87056.0,0.01724685]
[1766125129689,0.60203,87065.0,87057.0,0.01148672]
[1766125129896,0.60203,87065.0,87058.0,0.01148659]
[1766125130517,0.60203,87065.0,87057.0,0.01148672]
[1766125130716,0.00576,87068.0,87060.0,0.01148633]
[1766125131544,0.00576,87068.0,87059.0,0.32656646]
[1766125131545,0.00576,87068.0,87059.0,0.31508]
[1766125131714,0.00576,87068.0,87059.0,0.31514289]
[1766125131915,0.00576,87068.0,87067.0,0.0008508]
[1766125133787,0.00576,87068.0,87067.0,8e-07]
[1766125134111,0.00576,87068.0,87056.0,0.00576]
[1766125134112,0.29121,87063.0,87055.0,0.05]
[1766125134335,0.29121,87057.0,87050.0,0.0001]
[1766125134589,0.29121,87057.0,87050.0,0.00020973]
[1766125134954,0.60203,87057.0,87050.0,0.00020973]
[1766125135151,0.29121,87056.0,87050.0,0.00020973]
[1766125135561,0.29121,87054.0,87042.0,0.00576]
[1766125135865,0.00576011,87055.0,87042.0,0.00576]
[1766125135866,0.31082,87049.0,87042.0,7.563e-05]
[1766125136065,0.31082,87049.0,87037.0,0.04835239]
[1766125136066,0.31082,87044.0,87037.0,0.04835239]
[1766125136262,0.29121,87039.0,87033.0,0.0002]
[1766125136488,0.29121,87037.0,87033.0,0.0002]
[1766125137214,0.29697,87037.0,87033.0,0.0002]
[1766125138411,0.29697,87037.0,87023.0,0.00596]
[1766125138412,0.29121,87034.0,87023.0,0.00596]
[1766125138614,0.00576011,87033.0,87023.0,0.00605235]
[1766125138805,0.29121,87031.0,87023.0,0.00605235]
[1766125139222,0.05954187,87036.0,87023.0,0.00605235]
[1766125139431,0.31082,87032.0,87023.0,0.00029235]
[1766125139576,0.31082,87029.0,87023.0,0.00029235]
[1766125139798,0.29121,87028.0,87023.0,0.00029235]
[1766125139995,0.290111,87028.0,87023.0,0.00029235]
[1766125140422,0.31658,87035.0,87027.0,0.00126136]
[1766125140602,0.31658,87035.0,87023.0,0.00029235]
[1766125140819,0.31658,87035.0,87025.0,0.01149095]
[1766125141015,0.31658,87035.0,87026.0,0.01149081]
[1766125141872,0.00576,87034.0,87027.0,0.01149068]
[1766125142354,0.00576,87034.0,87026.0,0.01149081]
[1766125142532,0.0180257,87039.0,87025.0,0.01149095]
[1766125142533,0.29121,87036.0,87025.0,0.01149095]
[1766125142734,0.00576,87035.0,87025.0,0.01149095]
[1766125143070,0.00576,87034.0,87026.0,0.01149081]
[1766125143283,0.00576,87033.0,87026.0,0.01149081]
[1766125143734,0.00576,87033.0,87024.0,0.01149108]
[1766125144113,0.00576,87033.0,87026.0,0.01149081]
[1766125144298,0.00576,87033.0,87025.0,0.01149095]
[1766125144703,0.00576,87033.0,87028.0,0.01149055]
[1766125145022,0.00576,87039.0,87036.0,0.32766]
[1766125145635,0.00576,87042.0,87036.0,0.32766]
[1766125146039,0.001099,87036.0,87034.0,0.00104059]
[1766125146236,0.001099,87036.0,87031.0,0.08609]
[1766125146572,0.00576,87042.0,87035.0,0.00100905]
[1766125146706,0.00576,87042.0,87029.0,0.31743]
[1766125147105,0.00576,87042.0,87030.0,0.01149029]
[1766125147309,0.00576,87042.0,87030.0,0.32892029]
[1766125147752,0.00576,87042.0,87031.0,0.01149015]
[1766125148154,0.00576,87044.0,87036.0,0.32891949]
[1766125148383,0.31332,87049.0,87037.0,0.31743]
[1766125148556,0.00576,87045.0,87037.0,0.31743]
[1766125148756,0.2735,87044.0,87032.0,0.01149002]
[1766125149160,0.2735,87044.0,87033.0,0.31743]
[1766125149521,0.00576,87045.0,87031.0,0.00576]
[1766125149978,0.27926,87045.0,87032.0,0.31743]
[1766125150200,0.27926,87045.0,87032.0,0.32892002]
[1766125150338,0.27926,87045.0,87033.0,0.01148989]
[1766125150759,0.2735,87045.0,87032.0,0.31743]
[1766125150939,0.2735,87045.0,87039.0,0.0114891]
[1766125151138,0.2735,87045.0,87040.0,0.01148897]
[1766125151719,0.2735,87045.0,87036.0,0.22978778]
[1766125151840,0.2735,87045.0,87039.0,0.0114891]
[1766125152036,0.2735,87053.0,87041.0,0.00081984]
[1766125152257,0.27926,87052.0,87039.0,0.0114891]
[1766125152479,0.32592,87052.0,87041.0,0.01148883]
[1766125152697,0.2735,87051.0,87041.0,0.01148883]
[1766125153132,0.2735,87050.0,87041.0,0.01148883]
[1766125153728,0.2735,87050.0,87042.0,0.0114887]
[1766125153929,0.00576,87050.0,87045.0,0.31743]
[1766125154295,0.37970187,87059.0,87045.0,0.31743]
[1766125154296,0.00576,87052.0,87045.0,0.31743]
[1766125154679,0.00576,87052.0,87041.0,0.01148883]
[1766125154976,0.00576,87052.0,87042.0,0.0114887]
[1766125155291,0.00576,87052.0,87049.0,0.01148778]
[1766125155495,0.00576,87052.0,87047.0,0.01148804]
[1766125155639,0.00576,87052.0,87046.0,0.01148817]
[1766125155845,0.00576,87052.0,87047.0,0.01148804]
[1766125156645,0.00576,87052.0,87046.0,0.01148817]
[1766125156849,0.00576,87052.0,87045.0,0.01148831]
[1766125157192,0.00576,87052.0,87044.0,0.31743]
[1766125157684,0.00576,87052.0,87051.0,0.00050456]
[1766125157891,0.00576,87052.0,87044.0,0.31743]
[1766125158120,0.000594,87044.0,87038.0,0.32891923]
[1766125158323,0.000594,87044.0,87040.0,0.01148897]
[1766125158552,0.32592,87052.0,87043.0,0.00025235]
[1766125158763,0.32016,87077.0,87060.0,0.01148633]
[1766125158986,0.32016,87073.0,87062.0,0.31743]
[1766125159400,0.32016,87073.0,87062.0,0.32891606]
[1766125159551,0.59366,87073.0,87062.0,0.31743]
[1766125159753,0.00576,87072.0,87062.0,0.31743]
[1766125159953,0.27926,87072.0,87062.0,0.31743]
[1766125160401,0.2735,87071.0,87058.0,0.01148659]
[1766125160639,0.2735,87070.0,87058.0,0.01148659]
[1766125160843,0.11381835,87070.0,87058.0,0.01148659]
[1766125161045,0.11381835,87070.0,87059.0,0.01148646]
[1766125161198,0.321254,87058.0,87041.0,0.32891883]
[1766125161400,0.321254,87058.0,87041.0,0.31743]
[1766125161401,0.33168011,87057.0,87041.0,0.31743]
[1766125161665,0.33168011,87057.0,87038.0,0.24893]
[1766125161666,0.32016,87055.0,87038.0,0.00576]
[1766125161791,0.32016,87053.0,87040.0,0.01148897]
[1766125162004,0.00576011,87052.0,87039.0,0.0114891]
[1766125162371,0.00576,87051.0,87041.0,0.01148883]
[1766125162498,0.00576,87051.0,87041.0,0.32891883]
[1766125162703,0.00576,87051.0,87042.0,0.0114887]
[1766125162950,0.00576,87051.0,87044.0,0.01148844]
[1766125163099,0.00576,87051.0,87042.0,0.0114887]
[1766125163305,0.00576,87051.0,87041.0,0.32891883]
[1766125163947,0.00576,87051.0,87041.0,0.31743]
[1766125168378,0.00576,87051.0,87043.0,3.5e-07]
[1766125169824,0.2735,87048.0,87043.0,3.5e-07]
[1766125170369,0.32016,87049.0,87043.0,3.5e-07]
[1766125174017,0.00576,87051.0,87043.0,3.5e-07]
[1766125174018,0.2735,87044.0,87043.0,3.5e-07]
[1766125174199,0.59366,87044.0,87043.0,3.5e-07]
[1766125175771,0.40720571,87044.0,87043.0,3.5e-07]
[1766125183349,0.41296571,87044.0,87043.0,3.5e-07]
[1766125190220,0.26823,87049.0,87043.0,3.5e-07]
[1766125190378,0.26823,87047.0,87043.0,3.5e-07]
[1766125190576,0.33526,87047.0,87043.0,3.5e-07]
[1766125190786,0.00576,87046.0,87043.0,3.5e-07]
[1766125191397,0.33526,87052.0,87043.0,3.5e-07]
[1766125191603,0.60925,87051.0,87043.0,3.5e-07]
[1766125191798,0.27399,87050.0,87043.0,3.5e-07]
[1766125192072,0.60925,87050.0,87043.0,3.5e-07]
[1766125192564,0.00576,87049.0,87043.0,3.5e-07]
[1766125197231,0.27399,87049.0,87043.0,3.5e-07]
[1766125201238,0.33526,87048.0,87043.0,3.5e-07]
[1766125201438,0.26823,87045.0,87043.0,3.5e-07]
[1766125201634,0.60349,87044.0,87043.0,3.5e-07]
[1766125201836,0.60925,87044.0,87043.0,3.5e-07]
[1766125205286,0.34102,87044.0,87043.0,3.5e-07]
[1766125205861,0.36182,87059.0,87045.0,0.2412535]
[1766125206059,0.00576,87058.0,87048.0,0.29129]
[1766125207546,0.36182,87066.0,87052.0,0.33534]
[1766125207698,0.00576,87065.0,87052.0,0.33534]
[1766125208098,0.06530187,87065.0,87046.0,0.62663]
[1766125208362,0.36182,87064.0,87044.0,0.01148844]
[1766125208572,0.06530187,87065.0,87047.0,0.62663]
[1766125208689,0.65725,87064.0,87047.0,0.62663]
[1766125209045,0.06530187,87065.0,87047.0,0.62663]
[1766125209805,0.65725,87064.0,87047.0,0.63811804]
[1766125210007,0.36182,87064.0,87049.0,0.01148778]
[1766125210228,0.65725,87063.0,87049.0,0.34682778]
[1766125210906,0.65725,87063.0,87050.0,0.01148765]
[1766125211108,0.65725,87063.0,87049.0,0.34682778]
[1766125211448,0.65725,87063.0,87050.0,0.33534]
[1766125211816,0.29543,87062.0,87050.0,0.33534]
[1766125212219,0.05748488,87071.0,87050.0,0.33534]
[1766125212220,0.65725,87072.0,87056.0,0.29129]
[1766125212429,0.65725,87069.0,87057.0,0.62663]
[1766125212645,0.68098623,87070.0,87057.0,0.33534]
[1766125212646,0.66301,87068.0,87057.0,0.33534]
[1766125212879,0.00576,87068.0,87057.0,0.33534]
[1766125213089,0.29543,87066.0,87057.0,0.33534]
[1766125213869,0.00576,87065.0,87059.0,0.33534]
[1766125214071,0.29543,87072.0,87059.0,0.33534]
[1766125214309,0.29543,87072.0,87053.0,0.01724725]
[1766125214310,0.36182,87073.0,87060.0,0.34682633]
[1766125214516,0.046,87085.0,87072.0,0.33447462]
[1766125214740,0.65725,87091.0,87076.0,0.01148422]
[1766125215061,0.07333607,87102.0,87069.0,0.23546287]
[1766125215062,0.36182,87097.0,87084.0,0.01148316]
[1766125215262,0.00576,87097.0,87086.0,0.29129]
[1766125217469,0.68098623,87100.0,87086.0,0.29129]
[1766125217784,0.00576,87100.0,87086.0,0.29129]
[1766125217942,0.00576,87100.0,87086.0,0.3027729]
[1766125218139,0.66301,87100.0,87086.0,0.29129]
[1766125218343,0.66301,87100.0,87086.0,0.3027729]
[1766125219368,0.66301,87100.0,87087.0,0.01148277]
[1766125220182,0.66301,87100.0,87087.0,0.34682277]
[1766125220963,0.66301,87100.0,87087.0,0.33534]
[1766125221164,0.66301,87100.0,87087.0,0.34682277]
[1766125221585,0.66301,87100.0,87087.0,0.33534]
[1766125221787,0.66301,87100.0,87084.0,0.01148316]
[1766125221788,0.66301,87100.0,87084.0,0.33534]
[1766125222103,0.65725,87099.0,87084.0,0.62663]
[1766125222300,0.68674623,87100.0,87084.0,0.62663]
[1766125223518,0.68674623,87100.0,87084.0,0.33534]
[1766125223845,0.68674623,87100.0,87083.0,0.00576]
[1766125223846,0.65725,87096.0,87083.0,0.00576]
[1766125224022,0.00576,87095.0,87083.0,0.00576]
[1766125226804,0.66301,87095.0,87083.0,0.00576]
[1766125228560,0.66311965,87095.0,87083.0,0.00576]
[1766125229178,0.36768965,87095.0,87083.0,0.00576]
[1766125229379,0.65725,87094.0,87083.0,0.00576]
[1766125230021,0.66873184,87094.0,87083.0,0.00576]
[1766125230254,0.66873197,87093.0,87083.0,0.004661]
[1766125230458,0.65725,87093.0,87083.0,0.004661]
[1766125230666,0.66873197,87093.0,87083.0,0.004661]
[1766125231001,0.29543,87092.0,87083.0,0.004661]
[1766125231218,0.0114825,87089.0,87072.0,0.046]
[1766125231437,0.0114825,87089.0,87068.0,0.01148527]
[1766125231438,0.65725,87084.0,87073.0,0.00576]
[1766125231619,0.65725,87084.0,87074.0,0.00576]
[1766125231979,0.00576,87083.0,87070.0,0.00576]
[1766125232102,0.00576,87083.0,87070.0,1.02208623]
[1766125232298,0.00576,87083.0,87070.0,0.63239]
[1766125232917,0.30695011,87083.0,87070.0,0.63239]
[1766125233256,0.30119,87083.0,87070.0,0.63239]
[1766125233502,0.30119,87083.0,87071.0,0.33534]
[1766125236204,0.00576011,87082.0,87071.0,0.33534]
[1766125236444,0.30119,87083.0,87071.0,0.33534]
[1766125239331,0.00576011,87082.0,87071.0,0.33534]
[1766125239958,0.60647,87081.0,87071.0,0.33534]
[1766125240849,0.33499,87081.0,87071.0,0.33534]
[1766125241874,0.33499,87081.0,87071.0,0.60702]
[1766125242078,0.33499,87081.0,87072.0,0.35525]
[1766125244842,0.19263145,87081.0,87072.0,0.35525]
[1766125249548,0.00586965,87095.0,87084.0,0.35525]
[1766125249752,0.00586965,87095.0,87086.0,0.35525]
[1766125249933,0.00010965,87095.0,87087.0,0.35525]
[1766125251542,0.00010965,87095.0,87072.0,0.01148474]
[1766125251543,0.0114825,87089.0,87059.0,0.01148646]
[1766125251886,0.01148369,87080.0,87061.0,0.27168]
[1766125252059,0.23543875,87079.0,87062.0,0.35525]
[1766125252258,0.34647408,87077.0,87062.0,0.35525]
[1766125252456,0.60647,87076.0,87062.0,0.35525]
[1766125254060,0.60647,87076.0,87061.0,0.27168]
[1766125254224,0.60647,87076.0,87062.0,0.27168]
[1766125254427,0.60647,87076.0,87063.0,0.35525]
[1766125258412,0.01724382,87079.0,87063.0,0.35525]
[1766125258413,0.01148408,87077.0,87063.0,0.35525]
[1766125258627,0.33499,87075.0,87063.0,0.35525]
[1766125258884,0.27148,87074.0,87063.0,0.35525]
[1766125260565,0.00576,87079.0,87063.0,0.35525]
[1766125260566,0.27724,87079.0,87064.0,0.27168]
[1766125260777,0.27724,87079.0,87074.0,0.001099]
[1766125260984,0.01801705,87084.0,87074.0,0.27168]
[1766125261186,0.01801705,87084.0,87077.0,0.35525]
[1766125261805,0.00576,87087.0,87077.0,0.35525]
[1766125262046,0.01159136,87095.0,87087.0,0.356349]
[1766125262047,0.00010965,87095.0,87087.0,0.356349]
[1766125262258,0.00010965,87095.0,87089.0,0.35525]
[1766125263320,0.00010965,87095.0,87085.0,0.00576]
[1766125263534,0.27967965,87095.0,87085.0,0.00576]
[1766125268164,0.00576,87096.0,87095.0,0.00098935]
[1766125268578,0.00576,87096.0,87086.0,0.34061]
[1766125268799,0.00576,87096.0,87086.0,0.34071965]
[1766125269987,0.00576,87096.0,87086.0,0.35220255]
[1766125270562,0.00576,87096.0,87087.0,0.01148277]
[1766125270996,0.00576,87096.0,87086.0,0.35220255]
[1766125271208,0.00576,87096.0,87086.0,0.34071965]
[1766125271620,0.30165,87096.0,87086.0,0.34071965]
[1766125272988,0.65392,87096.0,87086.0,0.34071965]
[1766125275273,0.36951158,87096.0,87086.0,0.34071965]